[Event "41st Arco Open 2019"]
[Site "Arco"]
[Date "2019.10.05"]
[Round "2"]
[White "Horvath, Csaba"]
[Black "Behling, Robert"]
[Result "1-0"]
[ECO "A13"]
[WhiteElo "2503"]
[BlackElo "2062"]
[Annotator "ChessBase"]
[PlyCount "103"]
[EventDate "2019.10.04"]
[EventType "swiss"]
[EventCountry "ITA"]
[SourceTitle "playchess.com"]
[Source "ChessBase"]
[SourceQuality "1"]
[TimeControl "40/5400+30:1800+30"]

1. c4 {[%emt 0:00:30]} e6 {[%emt 0:00:30]} 2. Nf3 {[%emt 0:00:30]} d5 {[%emt 0:00:30]} 3. b3 {[%emt 0:00:30]} Nf6 {[%emt 0:00:30]} 4. Bb2 {[%emt 0:00:00]} Be7 5. g3 {[%emt 0:02:00]} O-O {[%emt 0:01:00]} 6. Bg2 {[%emt 0:00:30]} c5 {[%emt 0:00:30]} 7. cxd5 {[%emt 0:00:00]} Nxd5 {[%emt 0:05:30]} 8. d4 {[%emt 0:18:00]} Qa5+ {[%emt 0:13:30]} 9. Qd2 {[%emt 0:00:00]} Qxd2+ {[%emt 0:02:30]} 10. Nbxd2 {[%emt 0:00:00]} Nc6 {[%emt 0:05:30]} 11. dxc5 {[%emt 0:00:00]} Bxc5 12. O-O {[%emt 0:00:00]} Rd8 {[%emt 0:08:00]} 13. Rfc1 {[%emt 0:20:30]} Bf8 {[%emt 0:04:30]} 14. Ne4 {[%emt 0:00:00]} Bd7 {[%emt 0:05:30]} 15. Nc5 {[%emt 0:00:00]} Bxc5 16. Rxc5 {[%emt 0:00:00]} Rac8 {[%emt 0:03:00]} 17. e4 {[%emt 0:09:00]} Nde7 {[%emt 0:04:30]} 18. Bf1 {[%emt 0:08:30]} Kf8 {[%emt 0:07:30]} 19. a3 {[%emt 0:03:30]} Nb8 {[%emt 0:00:30]} 20. Rac1 {[%emt 0:00:30]} Rxc5 {[%emt 0:00:30]} 21. Rxc5 {[%emt 0:00:30]} Bc6 {[%emt 0:00:30]} 22. Rc4 {[%emt 0:00:30]} Rd1 {[%emt 0:03:30]} 23. Nd4 {[%emt 0:09:30]} e5 {[%emt 0:07:30]} 24. Nxc6 {[%emt 0:01:30]} Nbxc6 {[%emt 0:00:00]} 25. Kg2 {[%emt 0:05:30]} Nc8 {[%emt 0:00:00]} 26. Rc1 {[%emt 0:05:45]} Rxc1 {[%emt 0:00:30]} 27. Bxc1 Nd6 {[%emt 0:00:30]} 28. f3 {[%emt 0:02:08]} Ke7 {[%emt 0:14:32]} 29. Kf2 {[%emt 0:02:09]} a6 {[%emt 0:00:00]} 30. Bd3 {[%emt 0:03:16]} Nd4 {[%emt 0:00:00]} 31. b4 {[%emt 0:00:16]} b5 {[%emt 0:00:00]} 32. Be3 Nc6 {[%emt 0:00:00]} 33. Bc5 {[%emt 0:04:31]} Kd7 {[%emt 0:08:44]} 34. Ke3 {[%emt 0:00:41]} f6 {[%emt 0:00:00]} 35. h4 {[%emt 0:00:00]} g6 {[%emt 0:00:00]} 36. Bf1 {[%emt 0:00:50]} Kc7 {[%emt 0:04:32]} 37. Kd2 {[%emt 0:03:42]} Nb7 {[%emt 0:00:00]} 38. Be3 {[%emt 0:00:00]} Nd6 {[%emt 0:00:00]} 39. Kc3 {[%emt 0:01:43]} f5 {[%emt 0:02:37]} 40. exf5 {[%emt 0:00:54]} Nxf5 {[%emt 0:00:00]} 41. Bf2 {[%emt 0:24:49]} Nfd4 {[%emt 0:25:19]} 42. f4 {[%emt 0:08:06]} Ne6 43. Bh3 {[%emt 0:00:00]} Kd6 {[%emt 0:00:00]} 44. f5 {[%emt 0:00:00]} gxf5 45. Bxf5 {[%emt 0:00:00]} h6 {[%emt 0:00:00]} 46. Be3 {[%emt 0:00:00]} Ned4 {[%emt 0:00:00]} 47. Bg4 {[%emt 0:00:00]} Kd5 {[%emt 0:00:00]} 48. Bxh6 {[%emt 0:00:00]} Ne7 {[%emt 0:00:00]} 49. Be3 {[%emt 0:00:00]} Nef5 50. Bxd4 {[%emt 0:00:00]} exd4+ {[%emt 0:00:00]} 51. Kd3 Nxg3 {[%emt 0:00:00]} 52. h5 {[%emt 0:00:00]} 1-0

[Event "41st Arco Open 2019"]
[Site "Arco"]
[Date "2019.10.05"]
[Round "2"]
[White "Okhotnik, Vladimir"]
[Black "Beulertz, Stefan"]
[Result "0-1"]
[ECO "C01"]
[WhiteElo "2352"]
[BlackElo "2035"]
[Annotator "ChessBase"]
[PlyCount "138"]
[EventDate "2019.10.04"]
[EventType "swiss"]
[EventCountry "ITA"]
[SourceTitle "playchess.com"]
[Source "ChessBase"]
[SourceQuality "1"]
[TimeControl "40/5400+30:1800+30"]

1. e4 {[%emt 0:00:30]} e6 {[%emt 0:00:30]} 2. d4 {[%emt 0:00:00]} d5 {[%emt 0:00:00]} 3. exd5 {[%emt 0:00:00]} exd5 {[%emt 0:00:00]} 4. c4 {[%emt 0:00:00]} Nf6 {[%emt 0:01:30]} 5. Nc3 {[%emt 0:00:00]} Bb4 {[%emt 0:03:30]} 6. Bd3 {[%emt 0:06:30]} dxc4 {[%emt 0:01:30]} 7. Bxc4 {[%emt 0:00:00]} O-O {[%emt 0:00:30]} 8. Nf3 {[%emt 0:00:00]} Qe7+ {[%emt 0:10:30]} 9. Be3 {[%emt 0:00:00]} Nc6 10. O-O {[%emt 0:00:00]} Bg4 {[%emt 0:07:00]} 11. h3 {[%emt 0:00:00]} Bh5 12. a3 {[%emt 0:00:00]} Bxc3 {[%emt 0:05:00]} 13. bxc3 {[%emt 0:28:30]} Ne4 {[%emt 0:05:30]} 14. Re1 {[%emt 0:00:00]} Qf6 {[%emt 0:04:30]} 15. Rc1 {[%emt 0:00:00]} Rfe8 {[%emt 0:06:30]} 16. Be2 {[%emt 0:00:00]} Ng3 17. Bb5 {[%emt 0:00:00]} Nf5 {[%emt 0:18:00]} 18. Bxc6 {[%emt 0:00:00]} Nxe3 19. Rxe3 {[%emt 0:00:00]} Qxc6 {[%emt 0:08:00]} 20. Rxe8+ {[%emt 0:37:30]} Rxe8 {[%emt 0:00:30]} 21. g4 {[%emt 0:00:00]} Bg6 {[%emt 0:00:30]} 22. Ne5 {[%emt 0:00:00]} Qe6 {[%emt 0:14:53]} 23. Qf3 {[%emt 0:00:00]} c6 {[%emt 0:00:00]} 24. c4 {[%emt 0:00:00]} f6 {[%emt 0:01:55]} 25. Nxg6 hxg6 {[%emt 0:00:30]} 26. Kg2 {[%emt 0:00:00]} Rd8 {[%emt 0:03:41]} 27. Rd1 {[%emt 0:00:00]} Qxc4 {[%emt 0:00:21]} 28. Qe3 {[%emt 0:00:00]} Qd5+ 29. Qf3 {[%emt 0:00:00]} Qxf3+ {[%emt 0:00:57]} 30. Kxf3 Kf7 {[%emt 0:00:18]} 31. Ke4 {[%emt 0:00:00]} Ke6 {[%emt 0:00:00]} 32. Rb1 {[%emt 0:00:00]} b5 {[%emt 0:01:57]} 33. Rc1 Kd6 {[%emt 0:00:30]} 34. f4 {[%emt 0:00:00]} a5 {[%emt 0:00:01]} 35. h4 Rh8 {[%emt 0:00:49]} 36. Rh1 {[%emt 0:00:00]} b4 {[%emt 0:00:00]} 37. axb4 {[%emt 0:00:00]} axb4 {[%emt 0:01:34]} 38. Rh3 {[%emt 0:28:24]} Rb8 {[%emt 0:00:28]} 39. Rb3 {[%emt 0:00:00]} c5 {[%emt 0:00:18]} 40. Kd3 {[%emt 0:00:00]} Kd5 {[%emt 0:00:24]} 41. dxc5 {[%emt 0:00:00]} Kxc5 42. Kc2 {[%emt 0:00:00]} Re8 {[%emt 0:31:45]} 43. g5 {[%emt 0:34:35]} Re2+ {[%emt 0:02:08]} 44. Kd1 {[%emt 0:00:00]} Rh2 {[%emt 0:00:33]} 45. gxf6 {[%emt 0:00:00]} gxf6 {[%emt 0:00:08]} 46. f5 {[%emt 0:00:00]} Rxh4 47. fxg6 {[%emt 0:00:00]} Rg4 {[%emt 0:01:38]} 48. Rf3 Rxg6 {[%emt 0:00:13]} 49. Rf4 {[%emt 0:00:00]} Kb5 {[%emt 0:00:00]} 50. Kc2 {[%emt 0:00:00]} Ka4 {[%emt 0:00:00]} 51. Rf5 {[%emt 0:00:00]} Rg2+ {[%emt 0:00:00]} 52. Kc1 {[%emt 0:00:00]} Ka3 {[%emt 0:00:00]} 53. Rxf6 Rg1+ {[%emt 0:00:00]} 54. Kd2 {[%emt 0:00:00]} Kb2 {[%emt 0:00:00]} 55. Kd3 {[%emt 0:00:00]} Rg3+ {[%emt 0:00:00]} 56. Kd2 {[%emt 0:00:00]} b3 {[%emt 0:00:00]} 57. Rf8 {[%emt 0:00:00]} Rg7 {[%emt 0:00:00]} 58. Rd8 {[%emt 0:00:00]} Ra7 {[%emt 0:00:00]} 59. Rb8 {[%emt 0:00:00]} Ka2 60. Kc3 {[%emt 0:00:00]} Rc7+ {[%emt 0:00:22]} 61. Kd2 Kb2 {[%emt 0:00:00]} 62. Rd8 {[%emt 0:00:00]} Rc2+ {[%emt 0:00:00]} 63. Kd1 {[%emt 0:00:00]} Rh2 {[%emt 0:07:09]} 64. Rb8 {[%emt 0:06:15]} Ka2 65. Ra8+ {[%emt 0:00:00]} Kb1 {[%emt 0:00:00]} 66. Rb8 {[%emt 0:00:00]} b2 {[%emt 0:00:00]} 67. Rd8 {[%emt 0:00:00]} Rh3 68. Rb8 {[%emt 0:00:00]} Ka2 69. Kc2 b1=Q+ 0-1

[Event "41st Arco Open 2019"]
[Site "Arco"]
[Date "2019.10.05"]
[Round "2"]
[White "Favaloro, Andrea"]
[Black "Geisshirt, Marco"]
[Result "1-0"]
[ECO "D79"]
[WhiteElo "2338"]
[BlackElo "2025"]
[Annotator "ChessBase"]
[PlyCount "79"]
[EventDate "2019.10.04"]
[EventType "swiss"]
[EventCountry "ITA"]
[SourceTitle "playchess.com"]
[Source "ChessBase"]
[SourceQuality "1"]
[TimeControl "40/5400+30:1800+30"]

1. Nf3 {[%emt 0:00:30]} Nf6 {[%emt 0:00:30]} 2. g3 {[%emt 0:00:30]} g6 {[%emt 0:00:00]} 3. Bg2 {[%emt 0:00:00]} c5 {[%emt 0:00:00]} 4. c3 {[%emt 0:03:00]} Bg7 5. d4 {[%emt 0:00:30]} cxd4 {[%emt 0:01:00]} 6. cxd4 O-O {[%emt 0:00:30]} 7. Nc3 {[%emt 0:00:00]} d5 {[%emt 0:00:00]} 8. Ne5 {[%emt 0:08:30]} Nc6 {[%emt 0:11:00]} 9. O-O {[%emt 0:00:00]} Bf5 {[%emt 0:04:30]} 10. Nxc6 {[%emt 0:00:00]} bxc6 {[%emt 0:00:00]} 11. Bf4 {[%emt 0:00:00]} Qb6 12. Na4 {[%emt 0:00:00]} Qb5 {[%emt 0:06:30]} 13. Be5 {[%emt 0:00:00]} Ne4 14. Bxg7 {[%emt 0:00:00]} Kxg7 {[%emt 0:02:00]} 15. Rc1 {[%emt 0:19:30]} a5 {[%emt 0:06:30]} 16. b3 {[%emt 0:00:00]} Rac8 {[%emt 0:06:30]} 17. Bxe4 {[%emt 0:00:00]} Bxe4 {[%emt 0:01:30]} 18. Qd2 {[%emt 0:00:00]} Bf5 {[%emt 0:00:00]} 19. Rc5 {[%emt 0:00:00]} Qb4 {[%emt 0:03:00]} 20. Rd1 {[%emt 0:01:30]} Ra8 21. Qe3 {[%emt 0:09:30]} Rfe8 {[%emt 0:08:00]} 22. Rxc6 {[%emt 0:10:30]} Bd7 {[%emt 0:02:30]} 23. Rb6 {[%emt 0:00:00]} Qa3 {[%emt 0:00:30]} 24. Nc5 {[%emt 0:00:00]} Bh3 {[%emt 0:03:30]} 25. Qd2 {[%emt 0:02:30]} e5 {[%emt 0:05:30]} 26. Nd3 {[%emt 0:02:30]} e4 {[%emt 0:00:00]} 27. Nf4 {[%emt 0:00:30]} Be6 {[%emt 0:00:00]} 28. Rc1 {[%emt 0:03:30]} a4 {[%emt 0:04:30]} 29. Nxe6+ {[%emt 0:01:30]} fxe6 {[%emt 0:00:30]} 30. Rc7+ {[%emt 0:00:30]} Re7 {[%emt 0:00:30]} 31. Rbb7 Rae8 {[%emt 0:00:30]} 32. b4 {[%emt 0:00:00]} e3 {[%emt 0:00:30]} 33. fxe3 {[%emt 0:02:30]} Kf6 {[%emt 0:02:30]} 34. e4 {[%emt 0:00:30]} g5 {[%emt 0:00:00]} 35. e5+ {[%emt 0:00:30]} Kf7 {[%emt 0:01:00]} 36. Qxg5 {[%emt 0:00:30]} Qxb4 {[%emt 0:00:30]} 37. Rxe7+ {[%emt 0:00:30]} Qxe7 {[%emt 0:00:30]} 38. Qf6+ Kg8 {[%emt 0:00:00]} 39. Rxe7 {[%emt 0:01:00]} Rf8 {[%emt 0:00:00]} 40. Qg7# {[%emt 0:00:30]} 1-0

[Event "41st Arco Open 2019"]
[Site "Arco"]
[Date "2019.10.05"]
[Round "2"]
[White "Welling, Gerard"]
[Black "Battistella, Stefano"]
[Result "1/2-1/2"]
[ECO "B25"]
[WhiteElo "2302"]
[BlackElo "2017"]
[Annotator "ChessBase"]
[PlyCount "43"]
[EventDate "2019.10.04"]
[EventType "swiss"]
[EventCountry "ITA"]
[SourceTitle "playchess.com"]
[Source "ChessBase"]
[SourceQuality "1"]
[TimeControl "40/5400+30:1800+30"]

1. e4 {[%emt 0:00:30]} d6 {[%emt 0:00:30]} 2. Nc3 {[%emt 0:00:00]} c5 {[%emt 0:01:30]} 3. g3 {[%emt 0:02:00]} Nc6 {[%emt 0:01:30]} 4. Bg2 {[%emt 0:00:00]} g6 5. d3 {[%emt 0:00:00]} Bg7 {[%emt 0:01:00]} 6. f4 {[%emt 0:00:30]} Nf6 {[%emt 0:00:30]} 7. Nf3 {[%emt 0:00:00]} O-O {[%emt 0:00:00]} 8. O-O {[%emt 0:02:00]} Rb8 {[%emt 0:00:00]} 9. h3 {[%emt 0:00:00]} b5 {[%emt 0:00:00]} 10. Qe1 b4 {[%emt 0:01:00]} 11. Nd1 {[%emt 0:02:30]} a5 {[%emt 0:00:30]} 12. g4 {[%emt 0:00:30]} Ba6 {[%emt 0:01:30]} 13. Ne3 {[%emt 0:04:30]} Nd4 {[%emt 0:06:30]} 14. f5 {[%emt 0:02:30]} Nxc2 {[%emt 0:00:30]} 15. Nxc2 {[%emt 0:00:00]} Bxd3 {[%emt 0:00:30]} 16. Ne3 {[%emt 0:11:00]} Nxe4 {[%emt 0:11:30]} 17. Nh2 d5 {[%emt 0:14:30]} 18. fxg6 {[%emt 0:03:00]} hxg6 {[%emt 0:01:30]} 19. Rf3 {[%emt 0:06:30]} Ng5 {[%emt 0:10:30]} 20. Rf2 {[%emt 0:06:30]} Ne4 21. Rf3 {[%emt 0:03:30]} Ng5 {[%emt 0:01:00]} 22. Rf2 {[%emt 0:00:30]} 1/2-1/2

[Event "41st Arco Open 2019"]
[Site "Arco"]
[Date "2019.10.05"]
[Round "2"]
[White "Zwahr, Paul"]
[Black "Cardarelli, Angelo"]
[Result "1/2-1/2"]
[ECO "B42"]
[WhiteElo "2282"]
[BlackElo "2014"]
[Annotator "ChessBase"]
[PlyCount "72"]
[EventDate "2019.10.04"]
[EventType "swiss"]
[EventCountry "ITA"]
[SourceTitle "playchess.com"]
[Source "ChessBase"]
[SourceQuality "1"]
[TimeControl "40/5400+30:1800+30"]

1. e4 {[%emt 0:00:30]} c5 {[%emt 0:00:30]} 2. Nf3 {[%emt 0:00:00]} e6 {[%emt 0:00:00]} 3. d4 {[%emt 0:00:00]} cxd4 {[%emt 0:00:00]} 4. Nxd4 {[%emt 0:00:30]} a6 {[%emt 0:00:30]} 5. Bd3 {[%emt 0:00:00]} Bc5 {[%emt 0:00:30]} 6. Nb3 {[%emt 0:00:00]} Ba7 {[%emt 0:00:00]} 7. Qg4 {[%emt 0:01:30]} Nf6 {[%emt 0:00:00]} 8. Qg3 {[%emt 0:00:30]} d6 {[%emt 0:01:30]} 9. Nc3 {[%emt 0:00:30]} Nc6 {[%emt 0:00:30]} 10. Bg5 {[%emt 0:00:30]} h6 {[%emt 0:00:30]} 11. Bd2 {[%emt 0:00:30]} b5 {[%emt 0:09:30]} 12. f4 {[%emt 0:09:30]} O-O {[%emt 0:05:30]} 13. e5 {[%emt 0:04:30]} Ne8 {[%emt 0:11:30]} 14. Ne4 {[%emt 0:09:30]} Ne7 {[%emt 0:11:30]} 15. Nxd6 {[%emt 0:14:30]} Nxd6 {[%emt 0:00:30]} 16. exd6 {[%emt 0:00:00]} Nf5 {[%emt 0:10:30]} 17. Bxf5 {[%emt 0:00:00]} exf5 {[%emt 0:00:30]} 18. O-O-O {[%emt 0:15:30]} Qxd6 19. Bc3 {[%emt 0:08:30]} Qg6 {[%emt 0:04:00]} 20. Qxg6 {[%emt 0:00:00]} fxg6 {[%emt 0:00:30]} 21. Rhe1 {[%emt 0:01:00]} Bb8 {[%emt 0:05:30]} 22. g3 {[%emt 0:00:30]} Kf7 {[%emt 0:06:30]} 23. Bb4 {[%emt 0:20:33]} Re8 {[%emt 0:18:21]} 24. Rxe8 {[%emt 0:00:18]} Kxe8 {[%emt 0:00:00]} 25. Re1+ {[%emt 0:00:00]} Kf7 {[%emt 0:00:00]} 26. Re7+ {[%emt 0:00:36]} Kf6 {[%emt 0:00:00]} 27. Re8 {[%emt 0:00:39]} g5 {[%emt 0:03:19]} 28. fxg5+ {[%emt 0:05:20]} hxg5 {[%emt 0:00:30]} 29. Bc3+ {[%emt 0:03:40]} Kg6 {[%emt 0:03:08]} 30. Rg8 {[%emt 0:00:30]} Kh5 {[%emt 0:02:55]} 31. Bxg7 {[%emt 0:03:45]} Bb7 {[%emt 0:01:25]} 32. Rh8+ {[%emt 0:01:04]} Kg4 {[%emt 0:00:42]} 33. Nc5 {[%emt 0:01:03]} Bc6 {[%emt 0:02:16]} 34. Nd3 {[%emt 0:00:41]} f4 35. Kd1 {[%emt 0:00:48]} fxg3 {[%emt 0:01:20]} 36. hxg3 Bxg3 {[%emt 0:00:30]} 1/2-1/2

[Event "41st Arco Open 2019"]
[Site "Arco"]
[Date "2019.10.05"]
[Round "2"]
[White "Curien, Nicolas"]
[Black "Simeone, Giulio"]
[Result "1-0"]
[ECO "D00"]
[WhiteElo "2261"]
[BlackElo "2004"]
[Annotator "ChessBase"]
[PlyCount "83"]
[EventDate "2019.10.04"]
[EventType "swiss"]
[EventCountry "ITA"]
[SourceTitle "playchess.com"]
[Source "ChessBase"]
[SourceQuality "1"]
[TimeControl "40/5400+30:1800+30"]

1. d4 {[%emt 0:00:30]} Nf6 {[%emt 0:00:30]} 2. Nc3 {[%emt 0:00:00]} d5 {[%emt 0:00:00]} 3. Bf4 {[%emt 0:00:00]} Bf5 {[%emt 0:05:00]} 4. f3 {[%emt 0:02:30]} c6 5. e3 {[%emt 0:02:30]} Qb6 {[%emt 0:08:00]} 6. Rb1 {[%emt 0:00:30]} e6 {[%emt 0:00:30]} 7. g4 {[%emt 0:01:30]} Bg6 {[%emt 0:02:30]} 8. h4 {[%emt 0:11:30]} h5 {[%emt 0:02:30]} 9. g5 {[%emt 0:00:00]} Ng8 {[%emt 0:04:30]} 10. a3 Ne7 {[%emt 0:01:30]} 11. e4 {[%emt 0:05:30]} Nd7 {[%emt 0:01:30]} 12. Qd2 {[%emt 0:01:30]} Nc8 {[%emt 0:06:30]} 13. exd5 {[%emt 0:14:30]} exd5 14. Rh2 {[%emt 0:16:30]} Be7 {[%emt 0:08:00]} 15. Bh3 {[%emt 0:00:00]} Qd8 {[%emt 0:02:30]} 16. Nge2 {[%emt 0:08:00]} Ncb6 {[%emt 0:02:30]} 17. Ng3 {[%emt 0:00:30]} O-O {[%emt 0:01:30]} 18. Nf5 {[%emt 0:03:30]} Nc4 {[%emt 0:25:30]} 19. Qf2 {[%emt 0:04:30]} Re8 {[%emt 0:00:00]} 20. Kf1 {[%emt 0:00:30]} Nf8 {[%emt 0:00:00]} 21. Be5 {[%emt 0:05:30]} Nxe5 {[%emt 0:07:30]} 22. dxe5 {[%emt 0:03:32]} Qa5 {[%emt 0:02:32]} 23. Nxe7+ {[%emt 0:00:00]} Rxe7 {[%emt 0:00:12]} 24. f4 {[%emt 0:00:00]} Rd8 {[%emt 0:10:35]} 25. Rd1 {[%emt 0:02:38]} b5 {[%emt 0:03:24]} 26. f5 {[%emt 0:04:52]} Bh7 {[%emt 0:01:41]} 27. f6 Rxe5 {[%emt 0:00:41]} 28. fxg7 {[%emt 0:06:04]} Ng6 29. Qf6 {[%emt 0:02:02]} Qc7 {[%emt 0:03:06]} 30. Rf2 Qe7 {[%emt 0:00:52]} 31. Qxc6 {[%emt 0:04:15]} Nxh4 32. Qf6 {[%emt 0:01:39]} Qxf6 {[%emt 0:01:48]} 33. gxf6 a6 {[%emt 0:00:27]} 34. Rd4 {[%emt 0:01:12]} Nf5 {[%emt 0:00:00]} 35. Bxf5 {[%emt 0:00:28]} Bxf5 {[%emt 0:00:45]} 36. Re2 {[%emt 0:01:10]} Rxe2 {[%emt 0:00:49]} 37. Kxe2 {[%emt 0:00:05]} Be6 {[%emt 0:00:16]} 38. Ke3 {[%emt 0:00:41]} Kh7 {[%emt 0:00:31]} 39. Kf4 {[%emt 0:00:31]} Kg6 {[%emt 0:00:30]} 40. Nxd5 {[%emt 0:00:42]} Bxd5 {[%emt 0:00:00]} 41. Rxd5 {[%emt 0:01:09]} Re8 {[%emt 0:00:00]} 42. Rg5+ {[%emt 0:00:30]} 1-0

[Event "41st Arco Open 2019"]
[Site "Arco"]
[Date "2019.10.05"]
[Round "2"]
[White "Dittmar, Peter"]
[Black "Wernet, Andreas"]
[Result "1-0"]
[ECO "A90"]
[WhiteElo "2253"]
[BlackElo "1990"]
[Annotator "ChessBase"]
[PlyCount "67"]
[EventDate "2019.10.04"]
[EventType "swiss"]
[EventCountry "ITA"]
[SourceTitle "playchess.com"]
[Source "ChessBase"]
[SourceQuality "1"]
[TimeControl "40/5400+30:1800+30"]

1. d4 {[%emt 0:00:30]} e6 {[%emt 0:00:30]} 2. c4 {[%emt 0:00:00]} f5 {[%emt 0:03:30]} 3. g3 {[%emt 0:04:00]} Nf6 {[%emt 0:00:00]} 4. Bg2 {[%emt 0:00:00]} d5 5. Nh3 {[%emt 0:00:00]} c6 {[%emt 0:00:00]} 6. Qc2 {[%emt 0:03:30]} Bd6 {[%emt 0:00:00]} 7. O-O {[%emt 0:00:30]} O-O {[%emt 0:07:30]} 8. Bf4 {[%emt 0:06:30]} Na6 {[%emt 0:03:30]} 9. a3 {[%emt 0:00:00]} Nc7 {[%emt 0:00:30]} 10. Nd2 {[%emt 0:00:00]} Qe7 {[%emt 0:05:30]} 11. Bxd6 {[%emt 0:00:00]} Qxd6 {[%emt 0:00:00]} 12. Nf3 {[%emt 0:00:00]} Bd7 {[%emt 0:04:00]} 13. Nf4 {[%emt 0:03:30]} Be8 {[%emt 0:01:30]} 14. cxd5 {[%emt 0:03:30]} Ncxd5 {[%emt 0:05:30]} 15. Nd3 {[%emt 0:28:30]} Ne4 {[%emt 0:18:30]} 16. Nfe5 {[%emt 0:00:00]} Rb8 {[%emt 0:09:30]} 17. Rac1 {[%emt 0:00:00]} h5 {[%emt 0:08:30]} 18. Nc5 {[%emt 0:00:00]} Nef6 {[%emt 0:00:00]} 19. e4 {[%emt 0:00:00]} fxe4 {[%emt 0:07:00]} 20. Nxe4 {[%emt 0:00:00]} Nxe4 {[%emt 0:00:30]} 21. Qxe4 {[%emt 0:00:00]} Nf6 {[%emt 0:00:00]} 22. Qh4 Bf7 {[%emt 0:07:21]} 23. Rfd1 {[%emt 0:00:00]} Qc7 {[%emt 0:00:00]} 24. Bf3 {[%emt 0:06:30]} Rbd8 {[%emt 0:02:44]} 25. Rc5 {[%emt 0:32:03]} Rd5 {[%emt 0:02:58]} 26. Bxd5 {[%emt 0:00:00]} exd5 {[%emt 0:00:04]} 27. f3 {[%emt 0:00:00]} Qb6 {[%emt 0:01:18]} 28. Rd2 {[%emt 0:00:00]} Re8 29. Qf4 {[%emt 0:00:00]} Be6 {[%emt 0:02:22]} 30. Kg2 Nd7 {[%emt 0:05:07]} 31. Nxd7 {[%emt 0:00:00]} Bxd7 {[%emt 0:00:00]} 32. Rc3 {[%emt 0:00:00]} Re1 {[%emt 0:00:53]} 33. Re3 {[%emt 0:09:46]} Rb1 {[%emt 0:00:02]} 34. Re7 {[%emt 0:00:30]} 1-0

[Event "41st Arco Open 2019"]
[Site "Arco"]
[Date "2019.10.05"]
[Round "2"]
[White "Scheftlein, Richard"]
[Black "Valet, Richard"]
[Result "1-0"]
[ECO "E92"]
[WhiteElo "2236"]
[BlackElo "1987"]
[Annotator "ChessBase"]
[PlyCount "73"]
[EventDate "2019.10.04"]
[EventType "swiss"]
[EventCountry "ITA"]
[SourceTitle "playchess.com"]
[Source "ChessBase"]
[SourceQuality "1"]
[TimeControl "40/5400+30:1800+30"]

1. d4 {[%emt 0:00:30]} Nf6 {[%emt 0:03:30]} 2. c4 {[%emt 0:00:30]} g6 {[%emt 0:00:00]} 3. Nc3 {[%emt 0:00:00]} Bg7 {[%emt 0:01:00]} 4. e4 {[%emt 0:00:00]} d6 5. Nf3 {[%emt 0:00:30]} O-O {[%emt 0:00:00]} 6. Be2 e5 {[%emt 0:00:30]} 7. Be3 {[%emt 0:01:00]} Nc6 {[%emt 0:03:30]} 8. d5 {[%emt 0:05:30]} Ne7 {[%emt 0:00:00]} 9. Nd2 {[%emt 0:00:00]} Nd7 {[%emt 0:03:00]} 10. O-O {[%emt 0:00:00]} f5 {[%emt 0:01:30]} 11. f3 {[%emt 0:00:00]} f4 {[%emt 0:00:00]} 12. Bf2 {[%emt 0:00:00]} g5 {[%emt 0:00:00]} 13. b4 {[%emt 0:01:30]} h5 {[%emt 0:00:00]} 14. c5 {[%emt 0:00:00]} Nf6 {[%emt 0:00:00]} 15. Nc4 {[%emt 0:00:00]} Ne8 {[%emt 0:08:30]} 16. a4 {[%emt 0:07:30]} Rf7 {[%emt 0:05:30]} 17. a5 {[%emt 0:24:30]} Ng6 {[%emt 0:14:30]} 18. cxd6 {[%emt 0:00:00]} cxd6 {[%emt 0:01:30]} 19. Nb5 {[%emt 0:00:00]} a6 {[%emt 0:07:30]} 20. Nb6 {[%emt 0:00:00]} Rb8 {[%emt 0:00:00]} 21. Na3 {[%emt 0:00:00]} Bf8 {[%emt 0:03:00]} 22. Rc1 {[%emt 0:00:00]} Bd7 {[%emt 0:07:30]} 23. Nxd7 {[%emt 0:10:00]} Rxd7 {[%emt 0:00:30]} 24. Bb6 {[%emt 0:11:30]} Qf6 {[%emt 0:01:30]} 25. b5 {[%emt 0:00:00]} Rg7 {[%emt 0:00:30]} 26. bxa6 {[%emt 0:00:00]} bxa6 {[%emt 0:00:30]} 27. Bxa6 {[%emt 0:00:00]} g4 28. Kh1 {[%emt 0:00:00]} Nh4 {[%emt 0:07:00]} 29. Rg1 {[%emt 0:00:00]} Nxf3 30. gxf3 {[%emt 0:00:00]} Qh4 {[%emt 0:06:00]} 31. Rc8 {[%emt 0:18:30]} Rxc8 {[%emt 0:04:30]} 32. Bxc8 {[%emt 0:00:00]} Nf6 {[%emt 0:00:00]} 33. Bf5 {[%emt 0:00:00]} g3 {[%emt 0:05:00]} 34. Rg2 {[%emt 0:00:00]} Ng4 {[%emt 0:00:00]} 35. fxg4 {[%emt 0:00:00]} hxg4 {[%emt 0:01:00]} 36. Bg1 gxh2 {[%emt 0:00:30]} 37. Be6+ 1-0

[Event "41st Arco Open 2019"]
[Site "Arco"]
[Date "2019.10.05"]
[Round "2"]
[White "Vezzosi, Paolo"]
[Black "Bergero, Simone"]
[Result "1-0"]
[ECO "A45"]
[WhiteElo "2235"]
[BlackElo "1984"]
[Annotator "ChessBase"]
[PlyCount "69"]
[EventDate "2019.10.04"]
[EventType "swiss"]
[EventCountry "ITA"]
[SourceTitle "playchess.com"]
[Source "ChessBase"]
[SourceQuality "1"]
[TimeControl "40/5400+30:1800+30"]

1. d4 {[%emt 0:00:30]} Nf6 {[%emt 0:00:30]} 2. Bg5 {[%emt 0:00:30]} Ne4 {[%emt 0:00:00]} 3. Bf4 {[%emt 0:00:00]} g5 {[%emt 0:02:00]} 4. Bc1 {[%emt 0:03:00]} g4 5. f3 {[%emt 0:06:30]} gxf3 {[%emt 0:02:00]} 6. exf3 Nf6 {[%emt 0:00:00]} 7. Nc3 {[%emt 0:00:00]} d5 {[%emt 0:05:00]} 8. Bf4 {[%emt 0:03:30]} Bf5 {[%emt 0:04:30]} 9. Bd3 {[%emt 0:00:30]} Bxd3 {[%emt 0:10:30]} 10. Qxd3 {[%emt 0:00:30]} Bg7 {[%emt 0:05:30]} 11. Qb5+ {[%emt 0:04:30]} Nc6 {[%emt 0:00:00]} 12. Qxb7 {[%emt 0:08:30]} Nxd4 {[%emt 0:05:00]} 13. O-O-O c5 {[%emt 0:00:30]} 14. Bc7 {[%emt 0:08:00]} Qc8 {[%emt 0:00:30]} 15. Qxc8+ Rxc8 {[%emt 0:00:00]} 16. Be5 {[%emt 0:01:00]} e6 {[%emt 0:01:00]} 17. Bxd4 {[%emt 0:00:30]} cxd4 {[%emt 0:00:00]} 18. Nb5 {[%emt 0:00:30]} Kd7 19. Nxd4 {[%emt 0:01:30]} Rc4 {[%emt 0:28:30]} 20. Nge2 {[%emt 0:29:30]} Rb8 {[%emt 0:03:30]} 21. Rd3 {[%emt 0:00:00]} Rcb4 {[%emt 0:01:30]} 22. Rb3 {[%emt 0:00:00]} a5 {[%emt 0:00:30]} 23. c3 {[%emt 0:00:00]} Rc8 {[%emt 0:00:00]} 24. Kd2 {[%emt 0:00:00]} Bh6+ {[%emt 0:05:00]} 25. Kd3 {[%emt 0:00:00]} e5 {[%emt 0:00:30]} 26. Nf5 {[%emt 0:00:00]} e4+ {[%emt 0:01:30]} 27. Kc2 {[%emt 0:09:30]} Rxb3 {[%emt 0:00:30]} 28. axb3 {[%emt 0:00:00]} exf3 {[%emt 0:00:30]} 29. gxf3 {[%emt 0:00:00]} Re8 {[%emt 0:00:30]} 30. Kd3 {[%emt 0:00:00]} Bf8 {[%emt 0:00:00]} 31. Ra1 {[%emt 0:00:00]} Kc6 {[%emt 0:08:06]} 32. Rxa5 Kb6 {[%emt 0:00:30]} 33. b4 {[%emt 0:00:00]} Nd7 {[%emt 0:00:58]} 34. Ned4 {[%emt 0:00:00]} Ne5+ {[%emt 0:00:36]} 35. Kc2 {[%emt 0:00:00]} 1-0